fUSD/lending_fUSD_20240116
["ID","MTS","AMOUNT","RATE_DAILY","PERIOD"]
[311803609,1705419780871,165.89,0.00021614,2]
[311803610,1705419781195,165.89,0.00021727,2]
[311803611,1705419781318,165.89,0.00021839,2]
[311803612,1705419781585,165.89,0.00021952,2]
[311803613,1705419813409,155.0,0.00022,2]
[311803614,1705419818302,1131.80344334,0.00021917,2]
[311803615,1705419823715,500.0,0.00022,2]
[311803616,1705419831409,155.64910051,0.00022,2]
[311803617,1705419832662,462.35,0.00021271,2]
[311803618,1705419854716,9900.87,0.00021258,2]
[311803619,1705419859230,339.17323018,0.00021917,2]
[311803620,1705419866428,150.0,0.00021743,2]
[311803621,1705419871112,189.04,0.00016712,2]
[311803622,1705419881236,233.24,0.00019342,2]
[311803623,1705419881449,233.24,0.00021606,2]
[311803624,1705419884441,153.95,0.00021401,2]
[311803625,1705419884825,153.95,0.00021513,2]
[311803626,1705419885047,153.95,0.00021624,2]
[311803627,1705419886130,153.95,0.00021736,2]
[311803628,1705419886222,153.95,0.00021847,2]
[311803629,1705419886309,153.95,0.00021959,2]
[311803630,1705419887595,300.0,0.00021913,2]
[311803631,1705419904445,2000.0,0.00022,2]
[311803632,1705419908846,200.0,0.00022,2]
[311803633,1705419908983,150.0,0.00021973,2]
[311803634,1705419929803,200.0,0.00021242,2]
[311803635,1705419933700,386.84178679,0.00022001,2]
[311803636,1705419941320,404.1868368,0.00022,2]
[311803637,1705419946287,242.33,0.00021235,2]
[311803638,1705419949298,-4000.0,0.00022001,2]
[311803639,1705419949374,164.79,0.00016988,2]
[311803640,1705419950050,386.23347109,0.00022001,2]
[311803641,1705419950220,4486.26727607,0.00022,2]
[311803642,1705419950733,196.87781686,0.00022,2]
[311803643,1705419955164,-474.25500791,0.00022002,2]
[311803644,1705419955188,-4245.70602795,0.00022002,2]
[311803645,1705419958057,2779.50067626,0.00022001,2]
[311803646,1705419973168,115418.12329614,0.00022001,2]
[311803647,1705419973530,542.73763246,0.00022001,2]
[311803648,1705419974055,1617.96149262,0.00022001,2]
[311803649,1705420008874,250.0,0.00021246,2]
[311803650,1705420018061,312.06948338,0.00022001,2]
[311803651,1705420019094,155.0,0.00022001,2]
[311803659,1705420028784,4486.26727607,0.00022001,2]
[311803751,1705420031105,211.63392257,0.00022001,2]
[311803803,1705420033181,5213.49776909,0.00022001,2]
[311803804,1705420033633,474.25500791,0.00022001,2]
[311803805,1705420049790,70711.9443,0.00021911,2]
[311803806,1705420054980,300.0,0.000219,7]
[311803807,1705420055854,524.62106045,0.00022001,2]
[311803808,1705420079223,10552.5422065,0.00022001,2]
[311803809,1705420081417,48004.94559238,0.00022001,2]
[311803810,1705420081785,150.0,0.00022001,2]
[311803811,1705420081890,150.0,0.00022001,2]
[311803812,1705420094266,1255.79384089,0.00022001,2]
[311803813,1705420105290,2605.00004399,0.00022001,2]
[311803814,1705420105442,1041.42762442,0.00022001,2]
[311803815,1705420110524,7781.2432034,0.00022001,2]
[311803816,1705420113569,3004.11480193,0.00022001,2]
[311803817,1705420117322,511.2353743,0.0002,2]
[311803818,1705420118239,474.25500791,0.00022001,2]
[311803819,1705420122687,6436.33635297,0.00022001,2]
[311803820,1705420124352,156.93,0.00021469,2]
[311803821,1705420131838,215.35384188,0.00021992,2]
[311803822,1705420138263,1708.71966275,0.00022001,2]
[311803823,1705420140990,256.77,0.000218,2]
[311803824,1705420142881,256.77,0.00021937,2]
[311803825,1705420147202,200.0,0.00021257,2]
[311803826,1705420153896,253172.65563276,0.00022001,2]
[311803827,1705420157708,10552.5422065,0.00022001,2]
[311803828,1705420167123,180.9173091,0.00021903,2]
[311803831,1705420186780,419.42949528,0.00022001,2]
[311803832,1705420187339,2605.00004399,0.00022001,2]
[311803833,1705420188635,474.25500791,0.00022001,2]
[311803834,1705420188739,201.95,0.00021253,2]
[311803835,1705420188770,1255.79384089,0.00022001,2]
[311803836,1705420191278,9598.7791,0.00021915,2]
[311803837,1705420197750,749.69,0.00021258,2]
[311803838,1705420210574,2001.55,0.00025,15]
[311803839,1705420213050,250.0,0.000205,2]
[311803882,1705420232146,-1000.0,0.00022002,2]
[311803884,1705420232156,-403.68233242,0.00022002,2]
[311803886,1705420232166,-4884.75666758,0.00022002,2]
[311803891,1705420232193,-19451.97166695,0.00022002,2]
[311803894,1705420232203,-1415.02833305,0.00022002,2]
[311803896,1705420232216,-584.97166695,0.00022002,2]
[311803898,1705420232227,-763.59853721,0.00022003,2]
[311803900,1705420232237,-17.39667058,0.00022005,4]
[311803903,1705420232250,-303.19299995,0.00022005,4]
[311803907,1705420232281,-956.9078761,0.00022005,4]
[311803909,1705420232294,-800.09286468,0.00022005,4]
[311803911,1705420232304,-1757.9572871,0.00022014,2]
[311803913,1705420232315,-196.35508688,0.00022014,2]
[311803915,1705420232325,-542.32885752,0.00022014,2]
[311803917,1705420232336,-4623.14199213,0.00022014,2]
[311803920,1705420232347,-3856.82715024,0.00022014,2]
[311803922,1705420232360,-219.09824117,0.00022014,2]
[311803924,1705420232371,-156.76787413,0.00022014,2]
[311803926,1705420232381,-4475.14699523,0.00022014,2]
[311803927,1705420232392,-213.78815213,0.00022014,2]
[311803928,1705420232402,-159.68570217,0.00022014,2]
[311803929,1705420232412,-938.3307515,0.00022014,2]
[311803930,1705420232422,-1913.74997834,0.00022014,2]
[311803935,1705420232939,-413.17146972,0.00022014,2]
[311803936,1705420232957,-155.0,0.00022014,2]
[311803937,1705420232967,-246.50580772,0.00022014,2]
[311803938,1705420232978,-174.89408791,0.00022014,2]
[311803939,1705420232986,-667.12165136,0.00022014,2]
[311803940,1705420232997,-1040.46033182,0.00022014,2]
[311803941,1705420233006,-1704.25761775,0.00022014,2]
[311803942,1705420233016,-1717.02695306,0.00022014,2]
[311803943,1705420233026,-2137.87268645,0.00022014,2]
[311803944,1705420233036,-2058.85237853,0.00022014,2]
[311803945,1705420233047,-1705.74157043,0.00022014,2]
[311803946,1705420233057,-2154.2772109,0.00022015,2]
[311803947,1705420233066,-167.58210241,0.00022015,2]
[311803948,1705420233075,-167.58210241,0.00022015,2]
[311803949,1705420233085,-167.58210241,0.00022015,2]
[311803950,1705420233094,-9999.99,0.00022017,2]
[311803951,1705420233103,-616.85,0.00022057,2]
[311803952,1705420233113,-1872.74,0.00022057,2]
[311803953,1705420233123,-499.99,0.00022057,2]
[311803954,1705420233132,-165.89,0.00022064,2]
[311803955,1705420233142,-153.95,0.0002207,2]
[311803956,1705420233151,-512.14,0.00022074,2]
[311803957,1705420233161,-180.91730907,0.00022116,2]
[311803958,1705420233171,-1492.57529793,0.00022121,2]
[311803959,1705420233180,-2224.10785231,0.00022124,2]
[311803960,1705420233190,-156.03,0.00022126,2]
[311803961,1705420233199,-165.89,0.00022177,2]
[311803962,1705420233209,-153.95,0.00022182,2]
[311803963,1705420233219,-225.85565155,0.00022185,4]
[311803964,1705420233229,-2000.0,0.0002222,2]
[311803965,1705420233239,-200.0,0.0002222,2]
[311803966,1705420233248,-2000.0,0.00022222,2]
[311803967,1705420233258,-749.69,0.00022237,2]
[311803968,1705420233268,-156.03,0.00022271,2]
[311803969,1705420233279,-686.83,0.00022274,2]
[311803970,1705420233288,-165.89,0.0002229,2]
[311803971,1705420233298,-153.95,0.00022293,2]
[311803972,1705420233308,-600.0,0.000223,8]
[311803973,1705420233317,-1341.03585346,0.00022303,2]
[311803974,1705420233327,-180.91730907,0.0002233,2]
[311803975,1705420233337,-1131.80344331,0.00022338,2]
[311803976,1705420233346,-205.0,0.00022375,2]
[311803977,1705420233356,-324.83706697,0.00022397,2]
[311803978,1705420233365,-150.0,0.000224,2]
[311803979,1705420233375,-314.46,0.000224,2]
[311803980,1705420233384,-314.46,0.000224,2]
[311803981,1705420233394,-900.0,0.000224,8]
[311803982,1705420233406,-165.85748835,0.000224,2]
[311803983,1705420233415,-165.89,0.00022402,2]
[311803984,1705420233425,-153.95,0.00022405,2]
[311803985,1705420233435,-697.37000914,0.00022408,2]
[311803986,1705420233445,-473.33053471,0.00022408,2]
[311803987,1705420233454,-537.60819572,0.00022408,2]
[311803988,1705420233464,-881.94025081,0.00022408,2]
[311803989,1705420233474,-2310.06019671,0.00022409,2]
[311803990,1705420233483,-231.93292492,0.00022409,2]
[311803991,1705420233493,-20528.71342674,0.0002241,2]
[311803992,1705420233506,-1658.2123532,0.0002241,2]
[311803993,1705420233518,-19372.29241222,0.0002241,2]
[311803994,1705420233530,-561.46022541,0.0002241,2]
[311803995,1705420233546,-524.59066006,0.0002241,2]
[311803996,1705420233558,-468.5699798,0.0002241,2]
[311803997,1705420233577,-464.0253,0.0002241,2]
[311803998,1705420233589,-4044.32963381,0.0002241,2]
[311803999,1705420233602,-499.95,0.0002241,2]
[311804000,1705420233615,-441.0,0.0002241,2]
[311804001,1705420233628,-500.0,0.0002241,2]
[311804002,1705420233659,-928.53687171,0.0002241,2]
[311804003,1705420233672,-339.95296193,0.0002241,2]
[311804004,1705420233684,-499.51621629,0.0002241,2]
[311804005,1705420233696,-3284.84596553,0.0002241,2]
[311804006,1705420233708,-4561.824,0.0002241,2]
[311804007,1705420233733,-1031.76632145,0.0002241,2]
[311804008,1705420233745,-641.78023561,0.0002241,2]
[311804009,1705420233757,-1847.63088949,0.0002241,2]
[311804010,1705420233769,-910.3533981,0.0002241,2]
[311804011,1705420233790,-43430.26132675,0.0002241,2]
[311804012,1705420233853,-6067.00765408,0.0002241,2]
[311804013,1705420233864,-332.56664911,0.0002241,2]
[311804014,1705420233875,-633.39800275,0.0002241,2]
[311804015,1705420235491,156.0,0.00021275,2]
[311804016,1705420235826,156.0,0.00021701,2]
[311804018,1705420238190,-275.96458678,0.00022003,2]
[311804019,1705420238201,-5018.87825805,0.00022003,2]
[311804020,1705420238213,-30060.58730246,0.00022003,2]
[311804021,1705420238222,-156.0,0.00022126,2]
[311804022,1705420238231,-14771.12461012,0.0002241,2]
[311804023,1705420238243,-17921.32597948,0.0002241,2]
[311804024,1705420238254,-113893.13079195,0.0002241,2]
[311804025,1705420238266,-7625.30154869,0.0002241,2]
[311804026,1705420238277,-22658.63600001,0.0002241,2]
[311804027,1705420238288,-696.66443536,0.0002241,2]
[311804028,1705420238301,-2150.49940997,0.0002241,2]
[311804284,1705420243642,-212281.72894161,0.0002241,2]
[311804285,1705420243651,-1043.21340546,0.00022412,2]
[311804286,1705420243661,-363.81023427,0.00022412,2]
[311804287,1705420243671,-1044.62291264,0.00022412,2]
[311804288,1705420243680,-155.0,0.00022412,7]
[311804289,1705420243689,-156.03,0.00022415,2]
[311804290,1705420243698,-1865.3167,0.0002244,2]
[311804291,1705420243708,-2000.0,0.00022442,2]
[311804292,1705420243717,-200.0,0.00022442,2]
[311804293,1705420243727,-8473.8505,0.00022443,2]
[311804294,1705420243736,-2000.0,0.00022444,2]
[311804295,1705420243746,-1131.80344331,0.00022479,2]
[311804296,1705420243755,-27678.44457848,0.000225,2]
[311804297,1705420243765,-172.10999264,0.000225,8]
[311804298,1705420243777,-368.15848542,0.000225,8]
[311804299,1705420243792,-280.0,0.000225,8]
[311804300,1705420243805,-379.73152194,0.000225,8]
[311804301,1705420243814,-514.40879808,0.000225,2]
[311804302,1705420243824,-165.89,0.00022515,2]
[311804303,1705420243833,-153.95,0.00022516,2]
[311804304,1705420243843,-369.4297,0.0002254,2]
[311804305,1705420243852,-1000.0,0.0002254,2]
[311804306,1705420243861,-171.76196132,0.0002254,2]
[311804307,1705420243871,-583.48443091,0.0002254,2]
[311804308,1705420243881,-331.47368513,0.0002254,2]
[311804309,1705420243890,-155.63890342,0.0002254,2]
[311804310,1705420243900,-365.29236329,0.0002254,2]
[311804311,1705420243909,-1464.90588092,0.00022541,2]
[311804312,1705420243919,-215.79672251,0.00022543,4]
[311804313,1705420244269,-339.58885509,0.00022543,2]
[311804314,1705420244280,-180.91730907,0.00022543,2]
[311804315,1705420244289,-187.18634131,0.00022543,2]
[311804316,1705420244300,-7510.2338,0.00022543,2]
[311804317,1705420244310,-790.4889,0.00022543,2]
[311804318,1705420244320,-455.5872,0.00022543,2]
[311804319,1705420244329,-1034.042,0.00022543,2]
[311804320,1705420244339,-156.0,0.00022552,2]
[311804321,1705420244349,-156.03,0.0002256,2]
[311804322,1705420244358,-1341.03585346,0.0002259,2]
[311804323,1705420244370,-1600.0,0.000226,8]
[311804324,1705420244380,-1000.0,0.00022607,2]
[311804325,1705420244390,-1131.80344331,0.00022619,2]
[311804326,1705420244399,-165.89,0.00022627,2]
[311804327,1705420244410,-478.34472594,0.00022638,2]
[311804328,1705420244430,-481.70408771,0.00022638,2]
[311804329,1705420244443,-1342.68854386,0.00022638,2]
[311804330,1705420244453,-280.46355275,0.00022638,2]
[311804331,1705420244463,-500.0,0.00022639,2]
[311804332,1705420244473,-500.0,0.00022639,2]
[311804333,1705420244484,-500.0,0.00022639,2]
[311804334,1705420244494,-500.0,0.00022639,2]
[311804335,1705420244504,-500.0,0.00022639,2]
[311804336,1705420244514,-500.0,0.00022639,2]
[311804337,1705420244524,-500.0,0.00022639,2]
[311804338,1705420244533,-500.0,0.00022639,2]
[311804339,1705420244543,-500.0,0.00022639,2]
[311804340,1705420244553,-500.0,0.00022639,2]
[311804341,1705420244563,-500.0,0.00022639,2]
[311804342,1705420244572,-500.0,0.00022639,2]
[311804343,1705420244582,-500.0,0.00022639,2]
[311804344,1705420244591,-500.0,0.00022639,2]
[311804345,1705420244600,-500.0,0.00022639,2]
[311804346,1705420244610,-500.0,0.00022639,2]
[311804347,1705420244619,-500.0,0.00022639,2]
[311804348,1705420244629,-500.0,0.00022639,2]
[311804349,1705420244639,-500.0,0.00022639,2]
[311804350,1705420244648,-500.0,0.00022639,2]
[311804351,1705420244658,-500.0,0.00022639,2]
[311804352,1705420244667,-500.0,0.00022639,2]
[311804353,1705420244677,-500.0,0.00022639,2]
[311804354,1705420244687,-226.0,0.00022639,2]
[311804355,1705420244696,-521.17755723,0.00022639,2]
[311804356,1705420244706,-426.43701385,0.00022639,2]
[311804357,1705420244715,-419.08132681,0.0002264,2]
[311804358,1705420244725,-155.48806319,0.0002264,2]
[311804359,1705420244735,-1732.82374501,0.0002264,2]
[311804360,1705420244745,-396.68667808,0.00022642,10]
[311804361,1705420244755,-13171.99561915,0.00022643,2]
[311804362,1705420244767,-4946.19618858,0.00022643,2]
[311804363,1705420244779,-48530.22565021,0.00022643,2]
[311804364,1705420244795,-5100.81464862,0.00022643,2]
[311804365,1705420244837,-2248.308166,0.0002241,2]
[311804366,1705420244846,-331.44328953,0.00022643,2]
[311804367,1705420244858,-866.94,0.00022643,2]
[311804368,1705420244874,-1631.5164132,0.00022643,2]
[311804369,1705420244885,-636.9005323,0.00022643,2]
[311804370,1705420244897,-8861.04165548,0.00022643,2]
[311804371,1705420244908,-998.80882928,0.00022643,2]
[311804372,1705420244920,-540.1437836,0.00022643,2]
[311804373,1705420244931,-426.41746019,0.00022643,2]
[311804374,1705420244950,-565.34466925,0.00022643,2]
[311804375,1705420244962,-4096.72364498,0.00022643,2]
[311804376,1705420244974,-2464.94707999,0.00022643,2]
[311804377,1705420244986,-285.7904402,0.00022643,2]
[311804378,1705420244997,-73499.14536978,0.00022643,2]
[311804379,1705420245009,-38415.22822888,0.00022643,2]
[311804380,1705420245021,-79201.90475029,0.00022643,2]
[311804381,1705420245033,-512778.10559512,0.00022643,2]
[311804382,1705420245045,-79412.95409865,0.00022643,2]
[311804383,1705420245057,-326.45,0.00022643,2]
[311804419,1705420245566,-764.75363187,0.00022643,2]
[311804424,1705420245645,-6415.57376794,0.00022643,2]
[311804425,1705420245657,-981.33783082,0.00022643,2]
[311804426,1705420245668,-353.15536203,0.00022643,2]
[311804427,1705420245679,-10161.59811394,0.00022643,2]
[311804428,1705420245690,-386.19889246,0.00022643,2]
[311804429,1705420245796,-562.44851433,0.00022643,2]
[311804465,1705420249449,-10934.33479315,0.00022643,2]
[311804466,1705420249459,-2806.0813,0.00022643,2]
[311804467,1705420249468,-100000.0,0.00022643,2]
[311804468,1705420249477,-243427.62428823,0.00022643,2]
[311804469,1705420249488,-504.914445,0.00022643,2]
[311804470,1705420249501,-806.13027767,0.00022643,2]
[311804471,1705420249512,-261.3309891,0.00022643,2]
[311804472,1705420249522,-500.0,0.00022643,2]
[311804473,1705420249531,-1817.2865192,0.00022667,2]
[311804474,1705420249907,-182.7134808,0.00022667,2]
[311804475,1705420249918,-200.0,0.00022667,2]
[311804476,1705420249928,-2000.0,0.00022669,2]
[311804477,1705420249939,-1000.0,0.000227,2]
[311804478,1705420249950,-300.0,0.000227,8]
[311804479,1705420249960,-156.03,0.00022704,2]
[311804480,1705420249970,-339.58885507,0.00022722,2]
[311804481,1705420249980,-150.0,0.00022729,2]
[311804482,1705420249989,-150.0,0.00022729,2]
[311804483,1705420249998,-165.89,0.0002274,2]
[311804484,1705420250008,-246.83062604,0.00022742,2]
[311804485,1705420250017,-165.46285681,0.00022743,2]
[311804486,1705420250027,-50510.78554689,0.00022743,2]
[311804487,1705420250037,-500.0,0.00022743,2]
[311804488,1705420250047,-7417.37716852,0.00022743,2]
[311804489,1705420250062,-360.58392018,0.00022743,2]
[311804490,1705420250072,-630.37536118,0.00022743,2]
[311804491,1705420250082,-50000.0,0.00022743,2]
[311804492,1705420250091,-6913.65146776,0.00022743,2]
[311804493,1705420250101,-150.0,0.00022743,2]
[311804494,1705420250110,-6599.92498359,0.00022743,2]
[311804495,1705420250119,-3256.53490113,0.00022743,2]
[311804496,1705420250128,-150.0,0.00022744,2]
[311804497,1705420250138,-150.0,0.00022745,2]
[311804498,1705420250147,-150.0,0.00022749,2]
[311804499,1705420250157,-150.0,0.00022752,2]
[311804500,1705420250167,-150.0,0.00022757,2]
[311804501,1705420250176,-1131.80344331,0.0002276,2]
[311804502,1705420250186,-182.17022625,0.00022765,2]
[311804503,1705420250196,-150.0,0.00022766,2]
[311804504,1705420250205,-153.0,0.00022766,2]
[311804505,1705420250215,-494.2607926,0.00022768,2]
[311804506,1705420250225,-249.5354655,0.00022768,2]
[311804507,1705420250236,-19018.80662922,0.00022768,2]
[311804508,1705420250247,-204.16674,0.0002277,2]
[311804509,1705420250257,-150.0,0.0002277,2]
[311804510,1705420250267,-152.3068,0.0002277,2]
[311804511,1705420250277,-150.0,0.00022775,2]
[311804512,1705420250286,-150.0,0.00022775,2]
[311804513,1705420250295,-150.0,0.00022776,2]
[311804514,1705420250308,-150.0,0.00022779,2]
[311804515,1705420250317,-150.0,0.00022781,2]
[311804516,1705420250327,-150.0,0.00022782,2]
[311804517,1705420250337,-150.0,0.00022783,2]
[311804518,1705420250348,-150.0,0.00022786,2]
[311804519,1705420250358,-150.0,0.00022788,2]
[311804520,1705420250370,-1214.39850818,0.00022791,2]
[311804521,1705420250379,-1500.0,0.00022792,2]
[311804522,1705420250388,-150.0,0.00022793,2]
[311804523,1705420250399,-184.13974983,0.00022799,2]
[311804524,1705420250409,-2780.0,0.000228,2]
[311804525,1705420250419,-188.87,0.000228,2]
[311804526,1705420250428,-165.92298532,0.000228,2]
[311804527,1705420250439,-20769.0,0.000228,2]
[311804528,1705420250449,-300.0,0.000228,8]
[311804529,1705420250459,-150.0,0.00022801,2]
[311804530,1705420250469,-150.0,0.00022806,2]
[311804531,1705420250478,-150.0,0.00022808,2]
[311804532,1705420250487,-150.0,0.00022809,2]
[311804533,1705420250497,-150.0,0.0002281,2]
[311804534,1705420250507,-150.0,0.0002281,2]
[311804535,1705420250516,-153.0,0.0002281,2]
[311804536,1705420250525,-500.0,0.00022815,2]
[311804537,1705420250535,-200.0,0.00022815,2]
[311804538,1705420250545,-500.0,0.00022815,2]
[311804539,1705420250558,-500.0,0.00022815,2]
[311804540,1705420250567,-500.0,0.00022815,2]
[311804541,1705420250577,-500.0,0.00022815,2]
[311804542,1705420250586,-500.0,0.00022815,2]
[311804543,1705420250595,-500.0,0.00022815,2]
[311804544,1705420250605,-500.0,0.00022816,2]
[311804545,1705420250614,-200.0,0.00022816,2]
[311804546,1705420250624,-500.0,0.00022816,2]
[311804547,1705420250633,-500.0,0.00022816,2]
[311804548,1705420250643,-500.0,0.00022816,2]
[311804549,1705420250652,-500.0,0.00022816,2]
[311804550,1705420250662,-500.0,0.00022816,2]
[311804551,1705420250671,-500.0,0.00022816,2]
[311804552,1705420250680,-500.0,0.00022816,2]
[311804553,1705420250690,-500.0,0.00022816,2]
[311804554,1705420250699,-500.0,0.00022816,2]
[311804555,1705420250709,-500.0,0.00022816,2]
[311804556,1705420250718,-500.0,0.00022816,2]
[311804557,1705420250728,-500.0,0.00022816,2]
[311804558,1705420250737,-500.0,0.00022816,2]
[311804559,1705420250747,-800.0,0.00022816,2]
[311804560,1705420250757,-500.0,0.00022816,2]
[311804561,1705420250766,-500.0,0.00022816,2]
[311804562,1705420250776,-500.0,0.00022816,2]
[311804563,1705420250785,-500.0,0.00022816,2]
[311804564,1705420250795,-500.0,0.00022816,2]
[311804565,1705420250807,-500.0,0.00022816,2]
[311804566,1705420250942,-500.0,0.00022816,2]
[311804567,1705420250956,-500.0,0.00022816,2]
[311804568,1705420250966,-200.0,0.00022816,2]
[311804569,1705420250975,-200.0,0.00022816,2]
[311804570,1705420250985,-150.0,0.00022822,2]
[311804571,1705420250994,-150.0,0.00022827,2]
[311804572,1705420251004,-150.0,0.00022827,2]
[311804573,1705420251013,-150.0,0.00022833,2]
[311804574,1705420251022,-150.0,0.00022835,2]
[311804575,1705420251031,-150.0,0.00022836,2]
[311804576,1705420251041,-150.0,0.00022837,2]
[311804577,1705420251051,-150.0,0.00022849,2]
[311804578,1705420251063,-156.03,0.00022849,2]
[311804579,1705420251072,-150.0,0.00022851,2]
[311804580,1705420251082,-165.89,0.00022852,2]
[311804581,1705420251091,-150.0,0.00022853,2]
[311804582,1705420251101,-150.0,0.00022854,2]
[311804583,1705420251110,-300.0,0.00022861,2]
[311804584,1705420251120,-150.0,0.00022862,2]
[311804585,1705420251129,-150.0,0.00022872,2]
[311804586,1705420251138,-150.0,0.00022873,2]
[311804587,1705420251148,-150.0,0.00022877,2]
[311804588,1705420251157,-150.0,0.00022878,2]
[311804589,1705420251167,-150.0,0.00022881,2]
[311804590,1705420251177,-150.0,0.00022882,2]
[311804591,1705420251187,-500.0,0.00022882,2]
[311804592,1705420251196,-150.0,0.00022886,2]
[311804593,1705420251206,-150.0,0.00022886,2]
[311804594,1705420251216,-150.0,0.00022889,2]
[311804595,1705420251225,-500.0,0.00022891,2]
[311804596,1705420251236,-2000.0,0.00022893,2]
[311804597,1705420251245,-200.0,0.00022893,2]
[311804598,1705420251255,-150.0,0.00022895,2]
[311804599,1705420251265,-2000.0,0.00022895,2]
[311804600,1705420251275,-199.4101961,0.00022899,2]
[311804601,1705420251285,-199.4101961,0.00022899,2]
[311804602,1705420251295,-5000.0,0.00022899,2]
[311804603,1705420251307,-250.0,0.000229,2]
[311804604,1705420251317,-535.0,0.000229,2]
[311804605,1705420251326,-184.13974982,0.000229,2]
[311804606,1705420251336,-1131.80344331,0.000229,2]
[311804607,1705420251345,-14283.00171515,0.000229,2]
[311804608,1705420251355,-14283.00171515,0.000229,2]
[311804609,1705420251364,-14283.00171515,0.000229,2]
[311804610,1705420251374,-14283.00171515,0.000229,2]
[311804611,1705420251382,-14283.00171515,0.000229,2]
[311804612,1705420251392,-14283.00171515,0.000229,2]
[311804613,1705420251401,-14283.00171515,0.000229,2]
[311804614,1705420251410,-14283.00171515,0.000229,2]
[311804615,1705420251419,-500.0,0.000229,2]
[311804616,1705420251428,-199.4101961,0.000229,2]
[311804617,1705420251438,-379.34,0.000229,2]
[311804618,1705420251447,-339.58885507,0.000229,2]
[311804619,1705420251457,-151.0,0.000229,2]
[311804620,1705420251467,-590.67,0.000229,2]
[311804621,1705420251476,-300.0,0.000229,8]
[311804622,1705420251486,-150.0,0.00022903,2]
[311804623,1705420251495,-150.0,0.00022903,2]
[311804624,1705420251505,-150.0,0.00022905,2]
[311804625,1705420251514,-150.0,0.00022918,2]
[311804626,1705420251525,-150.0,0.00022924,2]
[311804627,1705420251536,-150.0,0.00022924,2]
[311804628,1705420251546,-150.0,0.00022926,2]
[311804629,1705420251560,-7999.99,0.00022937,3]
[311804630,1705420251570,-1500.0,0.00022937,2]
[311804631,1705420251581,-150.0,0.00022938,2]
[311804632,1705420251591,-150.0,0.0002295,2]
[311804633,1705420251602,-150.0,0.0002295,2]
[311804634,1705420251613,-150.0,0.00022953,2]
[311804635,1705420251624,-150.0,0.00022954,2]
[311804636,1705420251635,-150.0,0.00022956,2]
[311804637,1705420251645,-150.0,0.00022959,2]
[311804638,1705420251656,-150.0,0.00022963,2]
[311804639,1705420251666,-150.0,0.00022964,2]
[311804640,1705420251676,-165.89,0.00022965,2]
[311804641,1705420251687,-1000.0,0.0002297,2]
[311804642,1705420251698,-1000.0,0.0002297,2]
[311804643,1705420251709,-1880.89788928,0.0002297,2]
[311804644,1705420251720,-150.0,0.0002297,2]
[311804645,1705420251731,-150.0,0.00022972,2]
[311804646,1705420251741,-150.0,0.00022977,2]
[311804647,1705420251752,-156.0,0.00022977,2]
[311804648,1705420251762,-150.0,0.00022985,2]
[311804649,1705420251772,-150.0,0.00022986,2]
[311804650,1705420251782,-41674.0,0.00022986,2]
[311804651,1705420251792,-150.0,0.00022987,2]
[311804652,1705420251803,-1355.0,0.00022989,2]
[311804653,1705420251820,-337.023,0.00022989,2]
[311804654,1705420251830,-1853.0,0.00022989,2]
[311804655,1705420251840,-835.0,0.00022989,2]
[311804656,1705420251850,-945.0,0.00022989,2]
[311804657,1705420251860,-1234.0,0.00022989,2]
[311804658,1705420251870,-1249.0,0.00022989,2]
[311804659,1705420251880,-507.0,0.00022989,2]
[311804660,1705420251890,-319.0,0.00022989,2]
[311804661,1705420251899,-877.0,0.00022989,2]